Cogmind - Beta 16.1 @@@ ROGUE MODE // 2026.02.09 @ 23:13:49 Player: willowlium Result: Destroyed by Y-45 Defender with Beam Rifle Performance ------------- Evolutions (1) 500 Regions Visited (3) 600 Robots Destroyed (18) 90 Value Destroyed (543) 543 Prototype IDs (2) 40 Alien Tech Used (0) 0 Bonus (0) 0 TOTAL SCORE: 1773 Bonus ------- None Cogmind --------- Core Integrity 0/400 Matter 300/300 Energy 254/280 System Corruption 9% Temperature Cool (67) Movement Walking (120) Location -9/Storage Parts ------- > --- POWER (2) -------- Cooled Ion Engine > --- PROPULSION (2) --- Improved Aluminum Leg Improved Aluminum Leg > --- UTILITY (3) ------ Medium Storage Unit Terrain Scan Processor > --- WEAPON (2) ------- Particle Gun Spread Laser > --- INVENTORY (10) --- Cooled Ion Engine Medium Laser Beam Rifle EM Pulse Cannon Datajack Hammer Peak State ------------ > --- POWER ------------ Cooled Ion Engine Cooled Ion Engine > --- PROPULSION ------- Improved Aluminum Leg Improved Aluminum Leg > --- UTILITY ---------- Medium Storage Unit Terrain Scan Processor > --- WEAPON ----------- EM Pulse Cannon Hammer > --- INVENTORY -------- Medium Laser Beam Rifle Particle Gun Spread Laser Datajack [Rating: 17] Favorites ----------- Power Ion Engine Engine Ion Engine Propulsion Aluminum Leg Treads Light Treads Leg Aluminum Leg Wheel Armored Wheel Hover Unit Hover Unit Utility Terrain Scan Processor Device Sensor Array Storage Medium Storage Unit Processor Terrain Scan Processor Weapon Medium Laser Energy Gun Medium Laser Energy Cannon Light EM Pulse Cannon Impact Weapon Hammer Build | -11 -10 -9 -9 ------- Run | Yrd Mat Mat Sto Slots Evolved 2 | . . 2 . Power 1 | . . 1 . Propulsion . | . . . . Utility 1 | . . 1 . Weapon . | . . . . Parts Attached 27 | 5 4 13 5 Power 5 | 1 1 1 2 Engine 5 | 1 1 1 2 Core . | . . . . Reactor . | . . . . Propulsion 8 | 2 . 4 2 Treads 1 | . . 1 . Leg 4 | 2 . . 2 Wheel 1 | . . 1 . Hover 2 | . . 2 . Flight . | . . . . Utility 3 | . . 3 . Device 1 | . . 1 . Storage 1 | . . 1 . Processor 1 | . . 1 . Hackware . | . . . . Protection . | . . . . Artifact . | . . . . Weapon 11 | 2 3 5 1 Energy Gun 8 | 2 3 2 1 Energy Cannon 2 | . . 2 . Ballistic Gun . | . . . . Ballistic Cannon . | . . . . Launcher . | . . . . Special Weapon . | . . . . Impact Weapon 1 | . . 1 . Slashing Weapon . | . . . . Piercing Weapon . | . . . . Special Melee Weapon . | . . . . Unidentified Prototypes . | . . . . Corrupted Parts 1 | . . 1 . System Corruption 9 | . . 9 . Parts Lost 11 | . 2 9 . Power 3 | . . 3 . Propulsion 5 | . 1 4 . Utility 1 | . . 1 . Weapon 2 | . 1 1 . Highest Loss Streak 6 | . 2 6 . To Critical Strikes . | . . . . Average Backups 3 | . 1 4 5 Power . | . . . . Propulsion . | . . . . Utility . | . . . . Weapon 2 | . . 2 4 Tool/Special . | . . . . Unused Backups 1 | . . . 1 Power . | . . . . Propulsion . | . . . . Utility . | . . . . Weapon . | . . . . Tool/Special 1 | . . . 1 Average Slot Usage (%) 64 | . 63 62 70 Engine 9 | . 14 8 5 Leg 9 | . 20 1 19 Wheel 2 | . . 4 1 Hover 2 | . . 5 . Device 2 | . . 5 . Storage 5 | . . 6 11 Processor 6 | . . 8 11 Energy Gun 14 | . 28 9 8 Energy Cannon 5 | . . 6 7 Impact Weapon 3 | . . 4 6 Peak Build Rating 17 | 5 5 12 17 Average Rating 8 | 3 4 8 13 On Entrance 4 | . 5 4 8 Avg Prop Armor Cover (%) . | . . . . Naked Turns . | . . . . Heaviest Build 26 | 9 9 23 26 Greatest Support 26 | 20 20 20 26 Greatest Overweight (x) 5 | 2 . 5 1 Average Overweight (x) . | . . . . Largest Inventory Capacity 10 | 5 5 10 10 Average Capacity 7 | 5 5 8 10 Most Carried 7 | . 4 7 6 Average Carried 4 | . 1 4 5 Final Capacity 10 | 5 5 10 10 Final Carried 6 | . 3 6 6 Class Distribution -------------------- 100% | Mutant Dominant Class ---------------- Mutant | -10/Materials Mutant | -9/Materials Mutant | -9/Storage Resources | -11 -10 -9 -9 ----------- Run | Yrd Mat Mat Sto Matter Collected 515 | 250 48 122 95 Remotely . | . . . . Salvage Created 624 | . 134 383 107 Parts 31 | . 5 19 7 Haulers Intercepted . | . . . . Recyclers Shooed . | . . . . Parts Field Recycled . | . . . . Retrieved Matter . | . . . . Parts Self-Destructed . | . . . . Prevented . | . . . . Parts Restored . | . . . . Kills | -11 -10 -9 -9 ------- Run | Yrd Mat Mat Sto Combat Hostiles Destroyed 12 | . 4 7 1 Melee 1 | . 1 . . Guns 6 | . 3 2 1 Cannons 3 | . . 3 . Classes Destroyed 7 | . 2 4 1 Builder 1 | . . . 1 Mechanic 1 | . . 1 . Operator 1 | . . 1 . Watcher 3 | . . 2 1 Swarmer 1 | . 1 . . Grunt 7 | . 3 4 . Sentry 4 | . . 3 1 Best Kill Streak 6 | . 2 6 2 Combat Bots Only 2 | . 2 2 1 Max Kills in Single Turn 2 | . 1 2 1 Gunslinging . | . . . . Exploded . | . . . . Melee 1 | . 1 . . Uniques/NPCs Destroyed . | . . . . Combat | -11 -10 -9 -9 -------- Run | Yrd Mat Mat Sto Hostile Shots Fired 195 | . 83 107 5 Missed 54 | . 24 29 1 Hits 141 | . 59 78 4 Projectile 141 | . 59 78 4 Critical Strikes 6 | . 1 3 2 Damage Taken 1727 | . 564 1048 115 Core 564 | . 150 371 43 Absorbed by Shields . | . . . . Core Remaining (%) 70 | 100 40 . . Volleys Fired 44 | . 15 23 6 Largest 2 | . 2 2 2 Hottest 130 | . 100 121 130 Shots Fired 82 | . 29 42 11 Gun 64 | . 29 26 9 Cannon 18 | . . 16 2 Launcher . | . . . . Special . | . . . . Kinetic . | . . . . Thermal 62 | . 27 26 9 Explosive . | . . . . Electromagnetic 20 | . 2 16 2 Robot Hit Streak 10 | . 4 10 4 Robot Miss Streak 3 | . 3 2 2 Penetration Max . | . . . . Secondary Targets 1 | . 1 . . Max Gunslinging Chain 1 | . 1 . . Shots Hit Robots 66 | . 15 44 7 Core Hits 27 | . 8 12 7 Critical Kills . | . . . . Critical Parts Destroyed 2 | . . 2 . Critical Strikes 7 | . 2 4 1 Burn 4 | . 2 1 1 Corrupt 1 | . . 1 . Smash 2 | . . 2 . Melee Attacks 19 | . . 19 . Impact 19 | . . 19 . Slashing . | . . . . Piercing . | . . . . Sneak Attacks . | . . . . Combat Hostiles . | . . . . Follow-up Attacks . | . . . . Damage Inflicted 1342 | . 198 984 160 Guns 461 | . 189 192 80 Cannons 353 | . . 325 28 Explosions 221 | . . 169 52 Melee 298 | . . 298 . Ramming 9 | . 9 . . Kinetic . | . . . . Thermal 682 | . 189 361 132 Explosive . | . . . . Electromagnetic 353 | . . 325 28 Impact 298 | . . 298 . Slashing . | . . . . Piercing . | . . . . Highest Corruption 9 | . 4 9 9 Average Corruption 7 | . 3 9 9 Corruption Purged . | . . . . Corruption Blocked . | . . . . Effects 14 | . 4 2 8 Message Errors 3 | . . 1 2 Matter Fused 4 | . 2 1 1 Heat Flow Errors 2 | . . . 2 Energy Discharges 1 | . 1 . . Data Loss (minor) 1 | . . . 1 Data Loss (major) 2 | . 1 . 1 Misfires 1 | . . . 1 Overload Shots . | . . . . Overflow Damage 142 | . . 142 . Projectiles 16 | . . 16 . Explosions 89 | . . 89 . Melee 37 | . . 37 . Knockbacks . | . . . . Impact . | . . . . Kinetic . | . . . . Secondary . | . . . . Self-Inflicted Damage . | . . . . Shots . | . . . . Rammed . | . . . . Targets Rammed 6 | . 6 . . Kicked 6 | . 6 . . Crushed . | . . . . Highest Temperature 388 | . 388 338 262 Average Temperature 118 | . 159 104 80 Received Heat Transfer 654 | . 141 450 63 Effects 2 | . 1 1 . Shutdowns 1 | . 1 . . Energy Bleed 1 | . . 1 . Siege Activations . | . . . . Martial Activations . | . . . . Shielding Activations . | . . . . Robots Disrupted . | . . . . Combat Hostiles . | . . . . Robots Corrupted 2 | . . 2 . Combat Hostiles 2 | . . 2 . Parts Fried 2 | . . 2 . Impact Corruptions 2 | . . 2 . Robots Melted . | . . . . Combat Hostiles . | . . . . Parts Melted 3 | . . 3 . Heat Transferred 1693 | . 703 655 335 Parts Sabotaged . | . . . . Parts Stolen . | . . . . Parts Stripped . | . . . . Power Chain Reactions 1 | . . . 1 Alert | -11 -10 -9 -9 ------- Run | Yrd Mat Mat Sto Maximum Alert Level . | . . . . Low Security (%) 100 | 100 100 100 100 Level 1 . | . . . . Level 2 . | . . . . Level 3 . | . . . . Level 4 . | . . . . Level 5 . | . . . . High Security . | . . . . Max Security . | . . . . Peak Influence 125 | . 85 125 30 Initial 29 | . . 29 20 Average 37 | . 37 53 7 Influence Increases 460 | . 140 275 45 Destroy 0b10 Robot/C 240 | . 80 140 20 Destroy 0b10 Robot/NC 30 | . . 20 10 Destroy Leader 66 | . 10 44 12 Successful Hack 12 | . 5 7 . Disable Machine 30 | . . 30 . Destroy Structure 37 | . . 34 3 Lose Combat Pursuer 45 | . 45 . . Influence Decreases 443 | . 70 296 77 Entered New Map 70 | . . 41 29 Time Decay 274 | . 60 166 48 Lost Part 99 | . 10 89 . Squads Dispatched 2 | . . 2 . Investigation 1 | . . 1 . Extermination . | . . . . Reinforcement 1 | . . 1 . Assault . | . . . . Garrison . | . . . . Intercept . | . . . . Searches Triggered . | . . . . Construction Impeded . | . . . . Haulers Reinforced . | . . . . Active Scanning Responses . | . . . . Cargo Convoy Interrupts . | . . . . Stealth | -11 -10 -9 -9 --------- Run | Yrd Mat Mat Sto Distress Signals 1 | . . . 1 Communications Jammed . | . . . . Distress Signals . | . . . . Times Spotted 29 | . 8 14 7 Peak Tracking Total 7 | . 7 5 3 Tactical Retreats 2 | . 2 . . Traps | -11 -10 -9 -9 ------- Run | Yrd Mat Mat Sto Traps Triggered 3 | . 2 . 1 Indirectly . | . . . . Trap Hack Attempts . | . . . . Triggered . | . . . . Disarmed . | . . . . Reprogrammed . | . . . . Reused . | . . . . Traps Extracted . | . . . . Installed . | . . . . Triggered . | . . . . Machines | -11 -10 -9 -9 ---------- Run | Yrd Mat Mat Sto Machines Disabled 2 | . . 2 . Max in Single Turn 1 | . . 1 . Machines Repaired . | . . . . Machines Dismantled . | . . . . Machines Sabotaged . | . . . . Overloaded Fab Kills . | . . . . Hacking | -11 -10 -9 -9 --------- Run | Yrd Mat Mat Sto Machines Accessed 3 | . 1 2 . Terminals 3 | . 1 2 . Fabricators . | . . . . Repair Stations . | . . . . Recycling Units . | . . . . Scanalyzers . | . . . . Garrison Access . | . . . . Total Hacks 8 | . 1 7 . Successful 5 | . 1 4 . Failed 3 | . . 3 . Catastrophic 1 | . . 1 . Database Lockouts . | . . . . Manual . | . . . . Terminals 8 | . 1 7 . Fabricators . | . . . . Repair Stations . | . . . . Recycling Units . | . . . . Scanalyzers . | . . . . Garrison Access . | . . . . Terminal Hacks 5 | . 1 4 . Record 4 | . . 4 . Prototype ID Bank 1 | . 1 . . Fabricator Hacks . | . . . . Repair Station Hacks . | . . . . Recycling Unit Hacks . | . . . . Scanalyzer . | . . . . Garrison Access Hacks . | . . . . Unauthorized Hacks . | . . . . Terminals . | . . . . Fabricators . | . . . . Repair Stations . | . . . . Recycling Units . | . . . . Scanalyzers . | . . . . Garrison Access . | . . . . Data Cores Recovered 1 | . . 1 . Used . | . . . . Hacking Detections 2 | . 1 1 . Full Trace Events 1 | . . 1 . Feedback Events . | . . . . Feedback Blocked . | . . . . Robot Schematics Acquired . | . . . . Robots Built . | . . . . Authchips . | . . . . Time . | . . . . Total Robot Build Rating . | . . . . Part Schematics Acquired . | . . . . Parts Built . | . . . . Authchips . | . . . . Time . | . . . . Total Part Build Rating . | . . . . Part Studies Acquired . | . . . . Parts Repaired . | . . . . Time . | . . . . Parts Recycled . | . . . . Recycled Matter . | . . . . Retrieved Matter . | . . . . Retrieved Components . | . . . . Parts Scanalyzed . | . . . . Part Schematics Acquired . | . . . . Parts Damaged . | . . . . Bothacking | -11 -10 -9 -9 ------------ Run | Yrd Mat Mat Sto Used RIF Installer . | . . . . Robots Hacked . | . . . . Non-combat . | . . . . Combat . | . . . . Robot Hacks Applied . | . . . . Relay Couplers Released . | . . . . Fabnet Peak Effective % . | . . . . Robots Rewired . | . . . . Allies Hacked . | . . . . Hacks Repelled . | . . . . Allies | -11 -10 -9 -9 -------- Run | Yrd Mat Mat Sto Total Allies . | . . . . Largest Group . | . . . . Highest-Rated Group . | . . . . Highest-Rated Ally . | . . . . Total Orders . | . . . . Ally Attacks . | . . . . Total Damage . | . . . . Kills . | . . . . Allies Corrupted . | . . . . Allies Melted . | . . . . Intel | -11 -10 -9 -9 ------- Run | Yrd Mat Mat Sto Active Infowar (turns) 220 | . . 220 . Sensors 220 | . . 220 . Robot Analysis Total . | . . . . Derelict Logs Recovered . | . . . . Drone Launches . | . . . . Drone Recoveries . | . . . . Exploration | -11 -10 -9 -9 ------------- Run | Yrd Mat Mat Sto Turns Passed 820 | 43 197 420 160 Spaces Moved 482 | 33 114 221 114 Core 27 | 10 . 17 . Treads 14 | . . 14 . Legs 269 | 23 114 29 103 Wheels 115 | . . 104 11 Hover 57 | . . 57 . Flight . | . . . . Fastest Speed 50 | 50 120 90 105 Average Speed 118 | 110 120 118 119 Slowest Speed 300 | 150 120 300 190 Overloaded Moves . | . . . . Propulsion Burnouts . | . . . . Robots Hopped . | . . . . Potential Cave-ins . | . . . . Cave-ins Triggered . | . . . . Exploration Rate (%) 21 | 3 28 21 32 Regions Visited 3 Branch Regions 1 Pre-discovered Areas . | . . . . Known Exits Taken . | . . . . Unknown Exits Taken 3 | 1 1 1 . Scrap Searched . | . . . . Spaces Dug . | . . . . Terrain Destroyed 43 | . . 41 2 Melee . | . . . . Projectile . | . . . . AOE 43 | . . 41 2 Terrain Rammed . | . . . . Walls Destroyed . | . . . . Machines Disabled . | . . . . Actions | -11 -10 -9 -9 --------- Run | Yrd Mat Mat Sto Total 607 | 37 143 298 129 Wait 13 | . . 13 . Move 479 | 32 113 220 114 Hop . | . . . . Pick Up 7 | . 3 4 . Fast Attach 18 | 5 . 9 4 Attach 3 | . 1 1 1 Detach 1 | . . . 1 Swap 12 | . 3 7 2 Drop 5 | . 2 2 1 Fire 44 | . 15 23 6 Melee 19 | . . 19 . Ram . | . . . . Kick 6 | . 6 . . Crush . | . . . . Escape Stasis . | . . . . Rewire . | . . . . Trap . | . . . . Miscellaneous . | . . . . Route ------- -11/Scrapyard -10/Materials -9/Materials -9/Storage History --------- Turn | Location | Event 20 | -11/Scrapyard | Discovered new exit (range 15) 44 | -11/Scrapyard | Entered Materials 123 | -10/Materials | Core integrity fell below 50% 214 | -10/Materials | Discovered new exit (range 6) 241 | -10/Materials | Entered another Materials area 241 | -9/Materials | Evolved 2 slots: Power x1, Utility x1 319 | -9/Materials | Build established: Mutant 539 | -9/Materials | Discovered new exit (range 8) 600 | -9/Materials | Core integrity fell below 50% 618 | -9/Materials | Lost 6 parts (2p2n1u1w) 626 | -9/Materials | Core integrity fell below 20% 661 | -9/Materials | Entered Storage 668 | -9/Storage | Met 01-MTF 821 | -9/Storage | Destroyed by Y-45 Defender with Beam Rifle Last Messages --------------- 00785_ Acquired 45 matter. 00786_ K-01 Serf collects debris. 00791_ System corrupted: Component data lost. 00792_ K-01 Serf collects debris. 00799_ Y-45 Defender destroyed. 00803_ K-01 Serf collects debris. 00803_ W-16 Scout sends out distress signal. 00805_ Y-45 Defender destroyed. 00805_ R-06 Scavenger collects Heat Sink. 00806_ R-06 Scavenger collects Lgt. Treads. 00807_ W-16 Scout destroyed. 00810_ R-06 Scavenger collects Lgt. Armor Plating. 00813_ QN HYC<>:BZS9VM